[Event "*** SCC Grand Prix: Titled Tuesday Blitz"]
[Site "Chess.com"]
[Date "2020.09.29"]
[Round "9"]
[White "Fy_Rakotomaharo"]
[Black "Konavets"]
[Result "1/2-1/2"]
[WhiteElo "2682"]
[BlackElo "2955"]
[TimeControl "180+1"]
[EndTime "11:43:36 PDT"]
[Termination "Game drawn by stalemate"]

1. e4 {[%clk 0:03:00.5]} 1... c6 {[%clk 0:03:00.2]} 2. Nf3 {[%clk 0:02:59.4]}
2... d5 {[%clk 0:03:01.1]} 3. d3 {[%clk 0:03:00]} 3... g6 {[%clk 0:03:01.1]} 4.
e5 {[%clk 0:03:00.1]} 4... c5 {[%clk 0:03:01.5]} 5. d4 {[%clk 0:02:58.2]} 5...
Nc6 {[%clk 0:03:00.8]} 6. dxc5 {[%clk 0:02:58.1]} 6... Bg4 {[%clk 0:03:00.6]} 7.
Bb5 {[%clk 0:02:58.6]} 7... Rc8 {[%clk 0:03:00.1]} 8. O-O {[%clk 0:02:49.4]}
8... e6 {[%clk 0:03:00]} 9. b4 {[%clk 0:02:46.4]} 9... Bg7 {[%clk 0:02:59.9]}
10. Bxc6+ {[%clk 0:02:41.6]} 10... Rxc6 {[%clk 0:02:58.6]} 11. Re1 {[%clk
0:02:36.6]} 11... b6 {[%clk 0:02:58.4]} 12. cxb6 {[%clk 0:02:23.9]} 12... Qxb6
{[%clk 0:02:59.3]} 13. c3 {[%clk 0:02:16.1]} 13... Ne7 {[%clk 0:02:55.9]} 14.
Be3 {[%clk 0:01:53.5]} 14... Qc7 {[%clk 0:02:53.7]} 15. Bd4 {[%clk 0:01:53.4]}
15... Nf5 {[%clk 0:02:53.1]} 16. Nbd2 {[%clk 0:01:47]} 16... O-O {[%clk
0:02:46.2]} 17. h3 {[%clk 0:01:41]} 17... Nxd4 {[%clk 0:02:46.3]} 18. cxd4
{[%clk 0:01:37.8]} 18... Bf5 {[%clk 0:02:46.6]} 19. Rc1 {[%clk 0:01:31.8]} 19...
Rc8 {[%clk 0:02:44.2]} 20. Nb3 {[%clk 0:01:04]} 20... Rc4 {[%clk 0:02:35.8]} 21.
Rxc4 {[%clk 0:00:52]} 21... dxc4 {[%clk 0:02:36]} 22. Nc5 {[%clk 0:00:51.5]}
22... Qc6 {[%clk 0:02:35.1]} 23. Qd2 {[%clk 0:00:47.4]} 23... Bxh3 {[%clk
0:02:32.7]} 24. Qc3 {[%clk 0:00:45.2]} 24... Bg4 {[%clk 0:02:30.4]} 25. Nd2
{[%clk 0:00:45.5]} 25... h5 {[%clk 0:02:17.7]} 26. Qxc4 {[%clk 0:00:44.3]} 26...
h4 {[%clk 0:02:17]} 27. f3 {[%clk 0:00:40.7]} 27... Bf5 {[%clk 0:02:16.9]} 28.
a4 {[%clk 0:00:35.5]} 28... Bh6 {[%clk 0:02:15.1]} 29. Nde4 {[%clk 0:00:32.9]}
29... Kg7 {[%clk 0:02:14.3]} 30. Nd6 {[%clk 0:00:31.1]} 30... Rc7 {[%clk
0:02:14.4]} 31. b5 {[%clk 0:00:30.3]} 31... Qb6 {[%clk 0:02:11.9]} 32. Ne8+
{[%clk 0:00:24]} 32... Kh7 {[%clk 0:02:09]} 33. Nxc7 {[%clk 0:00:23.8]} 33...
Qxc7 {[%clk 0:02:09.9]} 34. Qc3 {[%clk 0:00:20.5]} 34... Bf4 {[%clk 0:02:05.5]}
35. Ne4 {[%clk 0:00:19.7]} 35... Qxc3 {[%clk 0:02:05.5]} 36. Nxc3 {[%clk
0:00:18.7]} 36... Bd2 {[%clk 0:02:06.4]} 37. Rd1 {[%clk 0:00:08.2]} 37... Bxc3
{[%clk 0:02:05.9]} 38. d5 {[%clk 0:00:09.1]} 38... exd5 {[%clk 0:01:58.7]} 39.
Rxd5 {[%clk 0:00:10]} 39... Be6 {[%clk 0:01:59.2]} 40. Rd8 {[%clk 0:00:08.7]}
40... Bxe5 {[%clk 0:01:59.3]} 41. Kf1 {[%clk 0:00:09.1]} 41... Bc7 {[%clk
0:01:57.9]} 42. Re8 {[%clk 0:00:08.9]} 42... Bb6 {[%clk 0:01:57.2]} 43. Re7
{[%clk 0:00:07.9]} 43... Kg7 {[%clk 0:01:53.2]} 44. Ke2 {[%clk 0:00:05.6]} 44...
Kf6 {[%clk 0:01:53]} 45. Rb7 {[%clk 0:00:06.1]} 45... Ke5 {[%clk 0:01:53.4]} 46.
a5 {[%clk 0:00:05.1]} 46... Bxa5 {[%clk 0:01:53.5]} 47. Rxa7 {[%clk 0:00:05.6]}
47... Bb6 {[%clk 0:01:53.1]} 48. Rb7 {[%clk 0:00:06.3]} 48... Bc5 {[%clk
0:01:52.5]} 49. b6 {[%clk 0:00:05.9]} 49... Kd6 {[%clk 0:01:53.2]} 50. Rb8
{[%clk 0:00:05.9]} 50... Kc6 {[%clk 0:01:45]} 51. b7 {[%clk 0:00:05.8]} 51...
Ba7 {[%clk 0:01:45.6]} 52. Rh8 {[%clk 0:00:05]} 52... Kxb7 {[%clk 0:01:46]} 53.
Rxh4 {[%clk 0:00:05.9]} 53... Kc6 {[%clk 0:01:46.6]} 54. Ra4 {[%clk 0:00:05.5]}
54... Bc5 {[%clk 0:01:46.5]} 55. Ra6+ {[%clk 0:00:04.7]} 55... Kd5 {[%clk
0:01:46.3]} 56. Ra1 {[%clk 0:00:05.6]} 56... Ke5 {[%clk 0:01:46.4]} 57. Kf1
{[%clk 0:00:05.4]} 57... Kf4 {[%clk 0:01:46.6]} 58. Ra4+ {[%clk 0:00:05.1]}
58... Kg3 {[%clk 0:01:47.1]} 59. Re4 {[%clk 0:00:03.5]} 59... Bd6 {[%clk
0:01:46.9]} 60. Rd4 {[%clk 0:00:02.5]} 60... Bf4 {[%clk 0:01:47.3]} 61. Ra4
{[%clk 0:00:02.1]} 61... Bd7 {[%clk 0:01:47.4]} 62. Rb4 {[%clk 0:00:01.6]} 62...
g5 {[%clk 0:01:47.9]} 63. Rd4 {[%clk 0:00:01.9]} 63... Bb5+ {[%clk 0:01:48.1]}
64. Ke1 {[%clk 0:00:02.5]} 64... Kxg2 {[%clk 0:01:48.4]} 65. Rd5 {[%clk
0:00:03.1]} 65... Bc6 {[%clk 0:01:48.4]} 66. Rc5 {[%clk 0:00:03.9]} 66... Bxf3
{[%clk 0:01:48.2]} 67. Rf5 {[%clk 0:00:04.8]} 67... Bh5 {[%clk 0:01:47.2]} 68.
Rxg5+ {[%clk 0:00:02.2]} 68... Bxg5 {[%clk 0:01:47.4]} 1/2-1/2

[Event "*** SCC Grand Prix: Titled Tuesday Blitz"]
[Site "Chess.com"]
[Date "2020.09.29"]
[Round "9"]
[White "Srisshhhtea"]
[Black "Chuchofrio1"]
[Result "1-0"]
[WhiteElo "2309"]
[BlackElo "2392"]
[TimeControl "180+1"]
[EndTime "11:43:43 PDT"]
[Termination "Srisshhhtea won by resignation"]

1. e4 {[%clk 0:03:00.9]} 1... c5 {[%clk 0:02:58.9]} 2. Nf3 {[%clk 0:03:00.2]}
2... e6 {[%clk 0:02:58.9]} 3. d4 {[%clk 0:02:58.2]} 3... cxd4 {[%clk 0:02:59.1]}
4. Nxd4 {[%clk 0:02:58.2]} 4... Nf6 {[%clk 0:02:59.7]} 5. Nc3 {[%clk 0:02:56.6]}
5... Nc6 {[%clk 0:03:00.2]} 6. a3 {[%clk 0:02:56.4]} 6... Be7 {[%clk 0:02:57.4]}
7. Nxc6 {[%clk 0:02:56]} 7... bxc6 {[%clk 0:02:56.8]} 8. e5 {[%clk 0:02:56.5]}
8... Nd5 {[%clk 0:02:57.1]} 9. Ne4 {[%clk 0:02:56.7]} 9... f5 {[%clk 0:02:53.3]}
10. exf6 {[%clk 0:02:55.3]} 10... Nxf6 {[%clk 0:02:53]} 11. Nd6+ {[%clk
0:02:55.5]} 11... Bxd6 {[%clk 0:02:46.4]} 12. Qxd6 {[%clk 0:02:56.4]} 12... Qb6
{[%clk 0:02:42.8]} 13. Bd3 {[%clk 0:02:43]} 13... c5 {[%clk 0:02:40.8]} 14. Bf4
{[%clk 0:02:38.2]} 14... Qxd6 {[%clk 0:02:12.2]} 15. Bxd6 {[%clk 0:02:39.1]}
15... Bb7 {[%clk 0:02:08.4]} 16. Bxc5 {[%clk 0:02:36]} 16... Kf7 {[%clk
0:02:08.4]} 17. f3 {[%clk 0:02:33.4]} 17... Rhc8 {[%clk 0:02:07.7]} 18. Bd4
{[%clk 0:02:33]} 18... Bd5 {[%clk 0:02:03.5]} 19. O-O-O {[%clk 0:02:31.8]} 19...
Rc7 {[%clk 0:01:54.4]} 20. Be5 {[%clk 0:02:24.9]} 20... Rb7 {[%clk 0:01:52.1]}
21. Rhf1 {[%clk 0:02:22.2]} 21... Rc8 {[%clk 0:01:51.1]} 22. g4 {[%clk
0:02:20.8]} 22... Rb6 {[%clk 0:01:39.2]} 23. h4 {[%clk 0:02:16.2]} 23... d6
{[%clk 0:01:38.4]} 24. Bd4 {[%clk 0:02:15.5]} 24... Rbc6 {[%clk 0:01:35.9]} 25.
Bxa7 {[%clk 0:02:12.1]} 25... Bb3 {[%clk 0:01:28.1]} 26. Rd2 {[%clk 0:02:05.4]}
26... Nd5 {[%clk 0:01:26.6]} 27. Kb1 {[%clk 0:02:00.9]} 27... Bc4 {[%clk
0:01:26]} 28. Bxc4 {[%clk 0:01:52.9]} 28... Rxc4 {[%clk 0:01:25.8]} 29. Re1
{[%clk 0:01:52.3]} 29... R8c7 {[%clk 0:01:24.5]} 30. Bf2 {[%clk 0:01:49.6]}
30... Rb7 {[%clk 0:01:23.6]} 31. Ka2 {[%clk 0:01:45.4]} 31... g6 {[%clk
0:01:15.6]} 32. Bg3 {[%clk 0:01:42]} 32... Rc6 {[%clk 0:01:12.6]} 33. Rh1 {[%clk
0:01:38.3]} 33... Ra6 {[%clk 0:01:11.6]} 34. h5 {[%clk 0:01:34.6]} 34... g5
{[%clk 0:01:09.6]} 35. c4 {[%clk 0:01:21.8]} 35... Ne3 {[%clk 0:01:03.9]} 36.
Rxd6 {[%clk 0:01:18.7]} 36... Rxd6 {[%clk 0:01:01.6]} 37. Bxd6 {[%clk
0:01:19.6]} 37... Nxc4 {[%clk 0:01:01.6]} 38. Bb4 {[%clk 0:01:18.9]} 38... Rd7
{[%clk 0:00:59.8]} 39. Rc1 {[%clk 0:01:15.8]} 39... Ne3 {[%clk 0:00:59.4]} 40.
Bc5 {[%clk 0:01:07.4]} 40... Nd5 {[%clk 0:00:57.5]} 41. b4 {[%clk 0:01:05.3]}
41... Rb7 {[%clk 0:00:55.9]} 42. Kb3 {[%clk 0:01:04.4]} 42... e5 {[%clk
0:00:56]} 43. a4 {[%clk 0:01:01.8]} 43... Ke6 {[%clk 0:00:56.1]} 44. a5 {[%clk
0:01:01.9]} 44... Rf7 {[%clk 0:00:56.1]} 45. a6 {[%clk 0:00:54.5]} 45... Rxf3+
{[%clk 0:00:56]} 46. Ka4 {[%clk 0:00:51.8]} 46... Nc7 {[%clk 0:00:50.2]} 47. b5
{[%clk 0:00:47.9]} 47... Rf4+ {[%clk 0:00:49.3]} 48. Ka5 {[%clk 0:00:48]} 48...
e4 {[%clk 0:00:42.5]} 49. b6 {[%clk 0:00:45.3]} 49... Nxa6 {[%clk 0:00:42.3]}
50. Kxa6 {[%clk 0:00:45.2]} 50... Kd5 {[%clk 0:00:42.3]} 51. b7 {[%clk
0:00:44.3]} 51... Rf8 {[%clk 0:00:42.1]} 52. Bxf8 {[%clk 0:00:42.9]} 1-0

[Event "*** SCC Grand Prix: Titled Tuesday Blitz"]
[Site "Chess.com"]
[Date "2020.09.29"]
[Round "9"]
[White "valeriocarnicelli"]
[Black "Tooweak2slow03"]
[Result "0-1"]
[WhiteElo "2539"]
[BlackElo "2801"]
[TimeControl "180+1"]
[EndTime "11:43:44 PDT"]
[Termination "Tooweak2slow03 won on time"]

1. e4 {[%clk 0:03:00.9]} 1... h5 {[%clk 0:03:00.4]} 2. d4 {[%clk 0:03:00.8]}
2... a5 {[%clk 0:03:01]} 3. Nc3 {[%clk 0:03:01]} 3... b6 {[%clk 0:03:01.3]} 4.
Bc4 {[%clk 0:03:00.1]} 4... e6 {[%clk 0:03:00.7]} 5. Nf3 {[%clk 0:03:00.1]} 5...
g6 {[%clk 0:03:00.6]} 6. O-O {[%clk 0:02:59.7]} 6... Ba6 {[%clk 0:02:48.1]} 7.
Qd3 {[%clk 0:02:54.7]} 7... Bxc4 {[%clk 0:02:47]} 8. Qxc4 {[%clk 0:02:55.6]}
8... Bg7 {[%clk 0:02:44.4]} 9. e5 {[%clk 0:02:48.5]} 9... Ne7 {[%clk 0:02:41.6]}
10. Bg5 {[%clk 0:02:45.8]} 10... O-O {[%clk 0:02:38.3]} 11. Ne4 {[%clk
0:02:43.9]} 11... d5 {[%clk 0:01:57.3]} 12. exd6 {[%clk 0:02:40.1]} 12... cxd6
{[%clk 0:01:58.2]} 13. Nf6+ {[%clk 0:02:22.5]} 13... Bxf6 {[%clk 0:01:55.4]} 14.
Bxf6 {[%clk 0:02:23.4]} 14... Nd7 {[%clk 0:01:55]} 15. Bg5 {[%clk 0:02:16.8]}
15... Re8 {[%clk 0:01:53]} 16. Qd3 {[%clk 0:02:15]} 16... e5 {[%clk 0:01:48.5]}
17. dxe5 {[%clk 0:02:09.8]} 17... Nxe5 {[%clk 0:01:46.2]} 18. Qe2 {[%clk
0:01:43.2]} 18... Qc7 {[%clk 0:01:41]} 19. Nd4 {[%clk 0:01:23.9]} 19... Qc5
{[%clk 0:01:38.2]} 20. Be3 {[%clk 0:01:18.1]} 20... Nd5 {[%clk 0:01:35.9]} 21.
Nb3 {[%clk 0:01:01]} 21... Qc6 {[%clk 0:01:31]} 22. Rad1 {[%clk 0:00:53.2]}
22... Nc4 {[%clk 0:01:26.6]} 23. Nd4 {[%clk 0:00:51.5]} 23... Qc8 {[%clk
0:01:19.6]} 24. Qf3 {[%clk 0:00:47.9]} 24... Ndxe3 {[%clk 0:01:16]} 25. fxe3
{[%clk 0:00:48.8]} 25... Qd7 {[%clk 0:01:12.8]} 26. e4 {[%clk 0:00:38.2]} 26...
Qe7 {[%clk 0:01:09.1]} 27. b3 {[%clk 0:00:31.5]} 27... Ne5 {[%clk 0:01:08.8]}
28. Qg3 {[%clk 0:00:30.8]} 28... Ng4 {[%clk 0:01:07.2]} 29. h3 {[%clk
0:00:23.3]} 29... Nf6 {[%clk 0:01:07]} 30. Nc6 {[%clk 0:00:19.1]} 30... Qe6
{[%clk 0:00:59.8]} 31. Rxd6 {[%clk 0:00:13.6]} 31... Nxe4 {[%clk 0:00:56.3]} 32.
Rxe6 {[%clk 0:00:12.8]} 32... Nxg3 {[%clk 0:00:56.8]} 33. Rxe8+ {[%clk
0:00:09.5]} 33... Rxe8 {[%clk 0:00:57.7]} 34. Rf3 {[%clk 0:00:08.8]} 34... Nf5
{[%clk 0:00:54.4]} 35. Kf2 {[%clk 0:00:06.2]} 35... Rc8 {[%clk 0:00:53.9]} 36.
Rxf5 {[%clk 0:00:03.1]} 36... Rxc6 {[%clk 0:00:54]} 37. Re5 {[%clk 0:00:01.9]}
37... Rxc2+ {[%clk 0:00:52.9]} 38. Kf3 {[%clk 0:00:02.4]} 38... Rxa2 {[%clk
0:00:51.7]} 39. Rb5 {[%clk 0:00:02.9]} 39... Ra3 {[%clk 0:00:50]} 40. Ke4 {[%clk
0:00:01.9]} 40... a4 {[%clk 0:00:48.6]} 41. b4 {[%clk 0:00:01.7]} 41... Ra1
{[%clk 0:00:46.9]} 42. Rxb6 {[%clk 0:00:01.3]} 42... a3 {[%clk 0:00:47.5]} 43.
Ra6 {[%clk 0:00:01.4]} 43... a2 {[%clk 0:00:48]} 44. Kf4 {[%clk 0:00:01.1]}
44... Rf1+ {[%clk 0:00:48.1]} 0-1

[Event "*** SCC Grand Prix: Titled Tuesday Blitz"]
[Site "Chess.com"]
[Date "2020.09.29"]
[Round "9"]
[White "AlexSuv"]
[Black "Supernotar"]
[Result "0-1"]
[WhiteElo "2505"]
[BlackElo "2779"]
[TimeControl "180+1"]
[EndTime "11:43:48 PDT"]
[Termination "Supernotar won by resignation"]

1. d4 {[%clk 0:03:00.9]} 1... d5 {[%clk 0:02:59.7]} 2. c4 {[%clk 0:02:58.1]}
2... dxc4 {[%clk 0:02:59.9]} 3. Nf3 {[%clk 0:02:57.6]} 3... Nf6 {[%clk
0:02:59.9]} 4. e3 {[%clk 0:02:57.9]} 4... e6 {[%clk 0:02:59.9]} 5. Bxc4 {[%clk
0:02:57.4]} 5... a6 {[%clk 0:02:59.9]} 6. a4 {[%clk 0:02:56.9]} 6... c5 {[%clk
0:02:59.4]} 7. O-O {[%clk 0:02:56.9]} 7... Nc6 {[%clk 0:02:58.5]} 8. Qe2 {[%clk
0:02:56.6]} 8... cxd4 {[%clk 0:02:58.3]} 9. Rd1 {[%clk 0:02:57.2]} 9... Be7
{[%clk 0:02:57.3]} 10. exd4 {[%clk 0:02:57.5]} 10... O-O {[%clk 0:02:56.6]} 11.
Nc3 {[%clk 0:02:58]} 11... Nb4 {[%clk 0:02:55.5]} 12. Bg5 {[%clk 0:02:55.9]}
12... Nfd5 {[%clk 0:02:54.6]} 13. Bxe7 {[%clk 0:02:48.3]} 13... Nxe7 {[%clk
0:02:52.9]} 14. Ne5 {[%clk 0:02:36.8]} 14... b6 {[%clk 0:02:50.5]} 15. Qf3
{[%clk 0:02:25.3]} 15... Rb8 {[%clk 0:02:44.3]} 16. Bb3 {[%clk 0:02:19.9]} 16...
Bb7 {[%clk 0:02:41.4]} 17. Qh5 {[%clk 0:02:19]} 17... Nbd5 {[%clk 0:02:38]} 18.
Nxd5 {[%clk 0:02:09.9]} 18... Nxd5 {[%clk 0:02:38.1]} 19. Qg4 {[%clk 0:02:00.7]}
19... Rc8 {[%clk 0:02:35.4]} 20. Rd3 {[%clk 0:01:56.2]} 20... g6 {[%clk
0:02:24.6]} 21. Rh3 {[%clk 0:01:47.3]} 21... Kg7 {[%clk 0:02:21.6]} 22. Bxd5
{[%clk 0:01:08.8]} 22... Qxd5 {[%clk 0:02:18.7]} 23. Qg5 {[%clk 0:00:43.4]}
23... Kg8 {[%clk 0:02:10.5]} 24. Rg3 {[%clk 0:00:20.4]} 24... Qxd4 {[%clk
0:02:07.3]} 25. Ng4 {[%clk 0:00:17.3]} 25... Rfd8 {[%clk 0:01:56.7]} 26. h4
{[%clk 0:00:13]} 26... Qxb2 {[%clk 0:01:53.4]} 27. Re1 {[%clk 0:00:12.1]} 27...
Qd2 {[%clk 0:01:49.7]} 28. Ree3 {[%clk 0:00:10]} 28... Qc1+ {[%clk 0:01:46.2]}
29. Kh2 {[%clk 0:00:10.4]} 29... Rd1 {[%clk 0:01:43.6]} 30. Nh6+ {[%clk
0:00:09.9]} 30... Kf8 {[%clk 0:01:34.2]} 31. Rgf3 {[%clk 0:00:10.3]} 31... Bxf3
{[%clk 0:01:29.8]} 32. Qf6 {[%clk 0:00:10.5]} 32... Qc7+ {[%clk 0:01:16.8]} 33.
Re5 {[%clk 0:00:08.4]} 33... Bd5 {[%clk 0:01:00.6]} 34. f4 {[%clk 0:00:08.8]}
34... Rd2 {[%clk 0:00:58.1]} 35. Ng4 {[%clk 0:00:07.1]} 35... Rxg2+ {[%clk
0:00:54.7]} 36. Kh3 {[%clk 0:00:07.8]} 36... Qc3+ {[%clk 0:00:50.3]} 37. Ne3
{[%clk 0:00:07.8]} 37... Qe1 {[%clk 0:00:40.5]} 38. Qh8+ {[%clk 0:00:06.4]}
38... Ke7 {[%clk 0:00:40.5]} 39. Nxd5+ {[%clk 0:00:07.1]} 39... Kd6 {[%clk
0:00:35.3]} 40. Rxe1 {[%clk 0:00:06.5]} 40... Rxh8 {[%clk 0:00:31.7]} 41. Kxg2
{[%clk 0:00:06.7]} 41... Kxd5 {[%clk 0:00:28.8]} 0-1

[Event "*** SCC Grand Prix: Titled Tuesday Blitz"]
[Site "Chess.com"]
[Date "2020.09.29"]
[Round "9"]
[White "VMikhalevski"]
[Black "FairChess_on_YouTube"]
[Result "0-1"]
[WhiteElo "2719"]
[BlackElo "2933"]
[TimeControl "180+1"]
[EndTime "11:43:50 PDT"]
[Termination "FairChess_on_YouTube won by checkmate"]

1. d4 {[%clk 0:03:00.9]} 1... Nf6 {[%clk 0:02:54]} 2. Nf3 {[%clk 0:03:01.3]}
2... c5 {[%clk 0:02:53.3]} 3. d5 {[%clk 0:03:00.6]} 3... b5 {[%clk 0:02:53.4]}
4. c4 {[%clk 0:03:00.7]} 4... Bb7 {[%clk 0:02:51.9]} 5. Qb3 {[%clk 0:02:58.5]}
5... b4 {[%clk 0:02:37.2]} 6. Qc2 {[%clk 0:02:53.6]} 6... d6 {[%clk 0:02:31]} 7.
e4 {[%clk 0:02:52.7]} 7... Nbd7 {[%clk 0:02:29.9]} 8. h3 {[%clk 0:02:50]} 8...
g6 {[%clk 0:02:29.8]} 9. Bf4 {[%clk 0:02:49.6]} 9... e5 {[%clk 0:02:26.1]} 10.
Bg5 {[%clk 0:02:36.4]} 10... Be7 {[%clk 0:02:22.2]} 11. Nbd2 {[%clk 0:02:33.6]}
11... Nxd5 {[%clk 0:02:20.2]} 12. cxd5 {[%clk 0:02:29.4]} 12... Bxg5 {[%clk
0:02:19.8]} 13. Nc4 {[%clk 0:02:26.6]} 13... Be7 {[%clk 0:02:18.4]} 14. h4
{[%clk 0:02:18]} 14... Qc7 {[%clk 0:02:01.6]} 15. a3 {[%clk 0:02:14.5]} 15... a5
{[%clk 0:01:54.4]} 16. h5 {[%clk 0:02:13.1]} 16... a4 {[%clk 0:01:48.5]} 17.
hxg6 {[%clk 0:02:06]} 17... fxg6 {[%clk 0:01:46.5]} 18. g3 {[%clk 0:01:57.8]}
18... b3 {[%clk 0:01:41.7]} 19. Qd1 {[%clk 0:01:56.1]} 19... Ba6 {[%clk
0:01:27.1]} 20. Rc1 {[%clk 0:01:33.1]} 20... O-O {[%clk 0:01:16.4]} 21. Bh3
{[%clk 0:01:32.6]} 21... Nb6 {[%clk 0:01:00.9]} 22. Be6+ {[%clk 0:01:29.5]}
22... Kh8 {[%clk 0:01:00.7]} 23. Nxb6 {[%clk 0:01:14.9]} 23... Qxb6 {[%clk
0:00:59.3]} 24. Qd2 {[%clk 0:01:11.6]} 24... Qb5 {[%clk 0:00:29.9]} 25. Rc3
{[%clk 0:01:03.7]} 25... Rxf3 {[%clk 0:00:15.5]} 26. Rxf3 {[%clk 0:01:02]} 26...
Bg5 {[%clk 0:00:16]} 27. Qd1 {[%clk 0:00:54.3]} 27... Qc4 {[%clk 0:00:12.5]} 28.
Re3 {[%clk 0:00:41.3]} 28... Bxe3 {[%clk 0:00:11.4]} 29. fxe3 {[%clk 0:00:41.4]}
29... Qxe4 {[%clk 0:00:11.4]} 30. Kd2 {[%clk 0:00:40.2]} 30... Rf8 {[%clk
0:00:10.8]} 31. Rh2 {[%clk 0:00:35.8]} 31... Qd3+ {[%clk 0:00:09.2]} 32. Kc1
{[%clk 0:00:35.4]} 32... Rf1 {[%clk 0:00:09.6]} 33. Qxf1 {[%clk 0:00:34.7]}
33... Qxf1+ {[%clk 0:00:10.3]} 34. Kd2 {[%clk 0:00:35.1]} 34... Qd3+ {[%clk
0:00:10.5]} 35. Kc1 {[%clk 0:00:33.8]} 35... Qxe3+ {[%clk 0:00:11.4]} 36. Rd2
{[%clk 0:00:32.7]} 36... Be2 {[%clk 0:00:10.7]} 37. Bh3 {[%clk 0:00:20.7]} 37...
Qg1+ {[%clk 0:00:10.1]} 38. Bf1 {[%clk 0:00:21]} 38... Qxf1+ {[%clk 0:00:10.2]}
39. Rd1 {[%clk 0:00:21.7]} 39... Qxd1# {[%clk 0:00:10.2]} 0-1

[Event "*** SCC Grand Prix: Titled Tuesday Blitz"]
[Site "Chess.com"]
[Date "2020.09.29"]
[Round "9"]
[White "ErikRonka"]
[Black "Legendinunknown"]
[Result "0-1"]
[WhiteElo "2476"]
[BlackElo "2652"]
[TimeControl "180+1"]
[EndTime "11:43:50 PDT"]
[Termination "Legendinunknown won on time"]

1. e4 {[%clk 0:03:00.9]} 1... e5 {[%clk 0:02:56.6]} 2. Nf3 {[%clk 0:03:00.6]}
2... Nc6 {[%clk 0:02:54.1]} 3. Bb5 {[%clk 0:03:00.6]} 3... a6 {[%clk 0:02:52.9]}
4. Ba4 {[%clk 0:03:01.1]} 4... Nf6 {[%clk 0:02:51.6]} 5. O-O {[%clk 0:03:01.6]}
5... Nxe4 {[%clk 0:02:51.6]} 6. d4 {[%clk 0:03:01]} 6... b5 {[%clk 0:02:50.9]}
7. Bb3 {[%clk 0:03:01.2]} 7... d5 {[%clk 0:02:51.4]} 8. dxe5 {[%clk 0:03:01.3]}
8... Be6 {[%clk 0:02:50.1]} 9. Qe2 {[%clk 0:03:01.8]} 9... Be7 {[%clk
0:02:49.3]} 10. Rd1 {[%clk 0:03:02.2]} 10... O-O {[%clk 0:02:48.2]} 11. c4
{[%clk 0:03:01.2]} 11... bxc4 {[%clk 0:02:46.6]} 12. Bxc4 {[%clk 0:03:00.6]}
12... Bc5 {[%clk 0:02:47]} 13. Be3 {[%clk 0:02:59.2]} 13... Bxe3 {[%clk
0:02:46.9]} 14. Qxe3 {[%clk 0:03:00.1]} 14... Qb8 {[%clk 0:02:46.9]} 15. Bb3
{[%clk 0:02:51.7]} 15... Na5 {[%clk 0:02:41.9]} 16. Nbd2 {[%clk 0:02:33.9]}
16... Nxd2 {[%clk 0:02:32.6]} 17. Rxd2 {[%clk 0:02:28.9]} 17... Nxb3 {[%clk
0:02:19.3]} 18. axb3 {[%clk 0:02:23.2]} 18... Qb6 {[%clk 0:02:13.3]} 19. Rc2
{[%clk 0:02:09.4]} 19... Rfb8 {[%clk 0:02:05.4]} 20. Qxb6 {[%clk 0:01:58.2]}
20... Rxb6 {[%clk 0:01:55.8]} 21. Nd4 {[%clk 0:01:58.1]} 21... Rc8 {[%clk
0:01:47.5]} 22. Rac1 {[%clk 0:01:56.2]} 22... Rb4 {[%clk 0:01:43.5]} 23. Nc6
{[%clk 0:01:40.2]} 23... Rxb3 {[%clk 0:01:35.1]} 24. Ne7+ {[%clk 0:01:39.7]}
24... Kf8 {[%clk 0:01:35.6]} 25. Nxc8 {[%clk 0:01:39.8]} 25... Bxc8 {[%clk
0:01:36.5]} 26. Rxc7 {[%clk 0:01:37.6]} 26... Be6 {[%clk 0:01:33.3]} 27. R1c2
{[%clk 0:01:15.3]} 27... a5 {[%clk 0:01:29.5]} 28. R7c5 {[%clk 0:01:05.9]} 28...
a4 {[%clk 0:01:28.6]} 29. Ra5 {[%clk 0:01:05.8]} 29... Rb4 {[%clk 0:01:23.1]}
30. f3 {[%clk 0:00:54.6]} 30... g5 {[%clk 0:01:20.5]} 31. Kf2 {[%clk 0:00:39.1]}
31... Kg7 {[%clk 0:01:19.1]} 32. Ke3 {[%clk 0:00:34]} 32... d4+ {[%clk
0:01:16.3]} 33. Ke4 {[%clk 0:00:14.5]} 33... Kg6 {[%clk 0:01:15.8]} 34. Rd2
{[%clk 0:00:13.2]} 34... Bf5+ {[%clk 0:01:07.5]} 35. Kd5 {[%clk 0:00:13.5]}
35... d3 {[%clk 0:01:07.1]} 36. Kc5 {[%clk 0:00:13.8]} 36... Rf4 {[%clk
0:00:58.1]} 37. Ra6+ {[%clk 0:00:08.5]} 37... Kg7 {[%clk 0:00:55.8]} 38. Kb5
{[%clk 0:00:07.8]} 38... g4 {[%clk 0:00:54.6]} 39. fxg4 {[%clk 0:00:07.7]} 39...
Rxg4 {[%clk 0:00:54.8]} 40. g3 {[%clk 0:00:07.6]} 40... Re4 {[%clk 0:00:54]} 41.
Kb6 {[%clk 0:00:05.5]} 41... Re2 {[%clk 0:00:52.9]} 42. Rd1 {[%clk 0:00:03.9]}
42... d2 {[%clk 0:00:50.2]} 43. Kc7 {[%clk 0:00:04]} 43... Bc2 {[%clk
0:00:49.5]} 44. Rxd2 {[%clk 0:00:01.5]} 44... Rxd2 {[%clk 0:00:50.4]} 45. Rc6
{[%clk 0:00:01.1]} 45... Bb3 {[%clk 0:00:49.9]} 0-1